[Event "*** SCC Grand Prix: Titled Tuesday Blitz"]
[Site "Chess.com"]
[Date "2020.09.29"]
[Round "5"]
[White "Anton_Demchenko"]
[Black "KyronGriffith"]
[Result "1-0"]
[WhiteElo "2819"]
[BlackElo "2515"]
[TimeControl "180+1"]
[EndTime "10:55:43 PDT"]
[Termination "Anton_Demchenko won by resignation"]

1. e4 {[%clk 0:03:00.9]} 1... c6 {[%clk 0:03:00]} 2. d4 {[%clk 0:03:00.5]} 2...
d5 {[%clk 0:03:00.6]} 3. Nc3 {[%clk 0:03:01.3]} 3... dxe4 {[%clk 0:03:00.4]} 4.
Nxe4 {[%clk 0:03:02.2]} 4... Nf6 {[%clk 0:03:00.9]} 5. Nxf6+ {[%clk 0:03:02.5]}
5... exf6 {[%clk 0:03:01.8]} 6. Nf3 {[%clk 0:03:03.3]} 6... Bd6 {[%clk
0:02:59.7]} 7. Bd3 {[%clk 0:03:03.4]} 7... O-O {[%clk 0:02:59]} 8. O-O {[%clk
0:03:04.1]} 8... Bg4 {[%clk 0:02:59.2]} 9. h3 {[%clk 0:03:04.6]} 9... Bh5 {[%clk
0:02:59.3]} 10. Bf5 {[%clk 0:03:04.8]} 10... Bg6 {[%clk 0:02:55.3]} 11. Bxg6
{[%clk 0:03:04.2]} 11... hxg6 {[%clk 0:02:55.2]} 12. c4 {[%clk 0:03:02]} 12...
Na6 {[%clk 0:02:53]} 13. Be3 {[%clk 0:02:59.8]} 13... Qd7 {[%clk 0:02:53.1]} 14.
a3 {[%clk 0:02:58.8]} 14... g5 {[%clk 0:02:52.2]} 15. Nd2 {[%clk 0:02:51.9]}
15... Nc7 {[%clk 0:02:47.5]} 16. Qf3 {[%clk 0:02:50.1]} 16... Rfe8 {[%clk
0:02:36.8]} 17. Rfd1 {[%clk 0:02:49.3]} 17... Ne6 {[%clk 0:02:29.4]} 18. Ne4
{[%clk 0:02:49.1]} 18... Bf4 {[%clk 0:02:25.3]} 19. Nc3 {[%clk 0:01:56.4]} 19...
Bxe3 {[%clk 0:02:15.5]} 20. fxe3 {[%clk 0:01:57.3]} 20... Nf8 {[%clk 0:02:16.1]}
21. Rd3 {[%clk 0:01:54.9]} 21... Ng6 {[%clk 0:02:15.3]} 22. Rad1 {[%clk
0:01:47.6]} 22... Rad8 {[%clk 0:02:14.6]} 23. b4 {[%clk 0:01:42.6]} 23... Qe6
{[%clk 0:02:10.1]} 24. c5 {[%clk 0:01:40.1]} 24... Qc4 {[%clk 0:02:05.4]} 25.
Qf1 {[%clk 0:01:13.6]} 25... Qb3 {[%clk 0:01:51.3]} 26. Ne4 {[%clk 0:01:09.5]}
26... Qd5 {[%clk 0:01:41.4]} 27. Nd6 {[%clk 0:01:09.5]} 27... Re7 {[%clk
0:01:39.9]} 28. e4 {[%clk 0:01:01]} 28... Rxe4 {[%clk 0:01:35.6]} 29. Nxe4
{[%clk 0:01:00.1]} 29... Qxe4 {[%clk 0:01:36.5]} 30. Re1 {[%clk 0:00:56.2]}
30... Qd5 {[%clk 0:01:36.2]} 31. Rd2 {[%clk 0:00:23.2]} 31... f5 {[%clk
0:01:28.7]} 32. Qf3 {[%clk 0:00:21.9]} 32... Qd7 {[%clk 0:01:24.9]} 33. Rf1
{[%clk 0:00:18.5]} 33... f4 {[%clk 0:01:19.3]} 34. Re1 {[%clk 0:00:18.9]} 34...
Nh4 {[%clk 0:01:16.4]} 35. Qg4 {[%clk 0:00:17]} 35... Qd5 {[%clk 0:00:55.1]} 36.
Re5 {[%clk 0:00:12.7]} 36... Qxe5 {[%clk 0:00:55.6]} 37. dxe5 {[%clk 0:00:13.6]}
37... Rxd2 {[%clk 0:00:55.9]} 38. Qc8+ {[%clk 0:00:05.4]} 38... Kh7 {[%clk
0:00:56.2]} 39. Qxb7 {[%clk 0:00:05.9]} 39... Rxg2+ {[%clk 0:00:56.2]} 40. Kf1
{[%clk 0:00:06.4]} 40... Rg3 {[%clk 0:00:20.5]} 41. Qxf7 {[%clk 0:00:06.4]}
41... f3 {[%clk 0:00:18.3]} 42. Qh5+ {[%clk 0:00:05.1]} 42... Kg8 {[%clk
0:00:18.8]} 43. e6 {[%clk 0:00:04.6]} 43... g6 {[%clk 0:00:09.8]} 44. Qh6 {[%clk
0:00:05]} 44... Rg2 {[%clk 0:00:04]} 45. e7 {[%clk 0:00:05.2]} 45... Re2 {[%clk
0:00:04.7]} 46. Qf8+ {[%clk 0:00:05.2]} 46... Kh7 {[%clk 0:00:05.6]} 47. e8=Q
{[%clk 0:00:05]} 1-0

[Event "*** SCC Grand Prix: Titled Tuesday Blitz"]
[Site "Chess.com"]
[Date "2020.09.29"]
[Round "5"]
[White "PSvidler"]
[Black "Belka1989"]
[Result "1/2-1/2"]
[WhiteElo "2912"]
[BlackElo "2284"]
[TimeControl "180+1"]
[EndTime "10:55:43 PDT"]
[Termination "Game drawn by repetition"]

1. Nf3 {[%clk 0:03:00.9]} 1... d5 {[%clk 0:02:59.1]} 2. g3 {[%clk 0:02:56.8]}
2... Nf6 {[%clk 0:02:59.1]} 3. Bg2 {[%clk 0:02:53.9]} 3... c6 {[%clk 0:02:59.4]}
4. O-O {[%clk 0:02:51.8]} 4... Bf5 {[%clk 0:02:58.9]} 5. c4 {[%clk 0:02:51.2]}
5... e6 {[%clk 0:02:59]} 6. cxd5 {[%clk 0:02:50.7]} 6... exd5 {[%clk 0:02:58.7]}
7. d3 {[%clk 0:02:50.2]} 7... Be7 {[%clk 0:02:58.5]} 8. Qb3 {[%clk 0:02:49.9]}
8... Qb6 {[%clk 0:02:57.8]} 9. Qc2 {[%clk 0:02:49.8]} 9... Nbd7 {[%clk
0:02:47.6]} 10. Nc3 {[%clk 0:02:49.5]} 10... O-O {[%clk 0:02:39.8]} 11. e4
{[%clk 0:02:49.4]} 11... dxe4 {[%clk 0:02:37.9]} 12. dxe4 {[%clk 0:02:49.2]}
12... Bg6 {[%clk 0:02:38.2]} 13. Nh4 {[%clk 0:02:48.3]} 13... Rfe8 {[%clk
0:02:09.8]} 14. Nxg6 {[%clk 0:02:45.3]} 14... hxg6 {[%clk 0:02:10.7]} 15. Be3
{[%clk 0:02:44.9]} 15... Qa5 {[%clk 0:02:04.1]} 16. h3 {[%clk 0:02:42.7]} 16...
Bc5 {[%clk 0:01:56.3]} 17. Bd2 {[%clk 0:02:42]} 17... Qc7 {[%clk 0:01:46.9]} 18.
Kh1 {[%clk 0:02:37.8]} 18... Rad8 {[%clk 0:01:44.6]} 19. f4 {[%clk 0:02:22.9]}
19... Nh5 {[%clk 0:01:32.2]} 20. Ne2 {[%clk 0:02:18]} 20... Bb6 {[%clk
0:01:24.6]} 21. e5 {[%clk 0:01:56.4]} 21... Nxe5 {[%clk 0:01:16.9]} 22. fxe5
{[%clk 0:01:47.7]} 22... Qxe5 {[%clk 0:01:17.8]} 23. Rae1 {[%clk 0:01:47.3]}
23... Nxg3+ {[%clk 0:00:45.7]} 24. Nxg3 {[%clk 0:01:47]} 24... Qxg3 {[%clk
0:00:46.6]} 25. Rxe8+ {[%clk 0:01:46.4]} 25... Rxe8 {[%clk 0:00:43.6]} 26. Bf4
{[%clk 0:01:43.9]} 26... Qh4 {[%clk 0:00:38.1]} 27. Qb3 {[%clk 0:01:43.6]} 27...
Re1 {[%clk 0:00:33.1]} 28. Qg3 {[%clk 0:01:36.6]} 28... Qxg3 {[%clk 0:00:20.1]}
29. Bxg3 {[%clk 0:01:36.6]} 29... Re2 {[%clk 0:00:20.4]} 30. b4 {[%clk
0:01:24.7]} 30... Rxa2 {[%clk 0:00:19.7]} 31. b5 {[%clk 0:01:24.8]} 31... Rc2
{[%clk 0:00:16.5]} 32. bxc6 {[%clk 0:01:24.2]} 32... bxc6 {[%clk 0:00:17.4]} 33.
Be4 {[%clk 0:01:21.3]} 33... Rc3 {[%clk 0:00:13.7]} 34. Rf3 {[%clk 0:01:20.6]}
34... Rxf3 {[%clk 0:00:13.5]} 35. Bxf3 {[%clk 0:01:20.7]} 35... f5 {[%clk
0:00:05.8]} 36. Bxc6 {[%clk 0:01:09.3]} 36... Kf7 {[%clk 0:00:06.2]} 37. Bh4
{[%clk 0:01:08]} 37... Bd4 {[%clk 0:00:03.6]} 38. Bd5+ {[%clk 0:01:08]} 38...
Kf8 {[%clk 0:00:02.7]} 39. Kg2 {[%clk 0:01:08.2]} 39... Bf6 {[%clk 0:00:03]} 40.
Bf2 {[%clk 0:01:08.1]} 40... a5 {[%clk 0:00:02.6]} 41. Bb6 {[%clk 0:01:07.6]}
41... a4 {[%clk 0:00:02.3]} 42. Kf3 {[%clk 0:01:04.5]} 42... a3 {[%clk
0:00:02.8]} 43. Bc5+ {[%clk 0:01:04.1]} 43... Be7 {[%clk 0:00:02.9]} 44. Bd4
{[%clk 0:01:04.2]} 44... Bf6 {[%clk 0:00:03.2]} 45. Bb6 {[%clk 0:01:04]} 45...
g5 {[%clk 0:00:03.4]} 46. Be6 {[%clk 0:01:02]} 46... g4+ {[%clk 0:00:03.3]} 47.
hxg4 {[%clk 0:01:02.1]} 47... fxg4+ {[%clk 0:00:04.2]} 48. Kxg4 {[%clk
0:01:02.4]} 48... g5 {[%clk 0:00:04.2]} 49. Kf5 {[%clk 0:01:01.7]} 49... Bb2
{[%clk 0:00:04.5]} 50. Kxg5 {[%clk 0:01:01]} 50... Kg7 {[%clk 0:00:04.9]} 51.
Bc5 {[%clk 0:01:01]} 51... Kh8 {[%clk 0:00:05.3]} 52. Bb4 {[%clk 0:01:00.9]}
52... Ba1 {[%clk 0:00:05]} 53. Kg6 {[%clk 0:01:01.2]} 53... Bd4 {[%clk
0:00:04.7]} 54. Ba2 {[%clk 0:01:01.3]} 54... Ba1 {[%clk 0:00:05]} 55. Bxa3
{[%clk 0:01:01.4]} 55... Bd4 {[%clk 0:00:05.3]} 56. Bb3 {[%clk 0:00:27.6]} 56...
Ba1 {[%clk 0:00:05.6]} 57. Ba2 {[%clk 0:00:27.9]} 57... Bc3 {[%clk 0:00:05.9]}
58. Bb3 {[%clk 0:00:28.8]} 58... Ba1 {[%clk 0:00:06.1]} 59. Ba2 {[%clk
0:00:29.7]} 1/2-1/2

[Event "*** SCC Grand Prix: Titled Tuesday Blitz"]
[Site "Chess.com"]
[Date "2020.09.29"]
[Round "5"]
[White "MatyChess1"]
[Black "Chessbard1972"]
[Result "0-1"]
[WhiteElo "2486"]
[BlackElo "2306"]
[TimeControl "180+1"]
[EndTime "10:55:44 PDT"]
[Termination "Chessbard1972 won on time"]

1. e4 {[%clk 0:03:00.9]} 1... c5 {[%clk 0:02:53.3]} 2. Nf3 {[%clk 0:03:00.7]}
2... a6 {[%clk 0:02:49.9]} 3. g3 {[%clk 0:02:56.2]} 3... d5 {[%clk 0:02:46.5]}
4. exd5 {[%clk 0:02:54.9]} 4... Qxd5 {[%clk 0:02:46.5]} 5. Nc3 {[%clk
0:02:53.5]} 5... Qe6+ {[%clk 0:02:44]} 6. Ne2 {[%clk 0:02:51.8]} 6... Qf6 {[%clk
0:02:36.3]} 7. Bg2 {[%clk 0:02:50.5]} 7... Bg4 {[%clk 0:02:35]} 8. Nf4 {[%clk
0:02:48.8]} 8... e6 {[%clk 0:02:30.5]} 9. O-O {[%clk 0:02:18.8]} 9... Nc6 {[%clk
0:02:28.5]} 10. Re1 {[%clk 0:02:13.6]} 10... Be7 {[%clk 0:02:20.5]} 11. Nd5
{[%clk 0:02:10.2]} 11... exd5 {[%clk 0:02:15.5]} 12. h3 {[%clk 0:02:10.8]} 12...
Be6 {[%clk 0:02:12.5]} 13. d3 {[%clk 0:02:08.4]} 13... h6 {[%clk 0:02:08.5]} 14.
Bf4 {[%clk 0:02:02.9]} 14... g5 {[%clk 0:02:01.8]} 15. Bd2 {[%clk 0:02:02.3]}
15... O-O-O {[%clk 0:01:56]} 16. a3 {[%clk 0:01:58.1]} 16... Bd6 {[%clk
0:01:51.8]} 17. b4 {[%clk 0:01:55.2]} 17... cxb4 {[%clk 0:01:49.8]} 18. axb4
{[%clk 0:01:54.9]} 18... Bxb4 {[%clk 0:01:49.2]} 19. Bxb4 {[%clk 0:01:47.9]}
19... Nxb4 {[%clk 0:01:49]} 20. Ne5 {[%clk 0:01:48.8]} 20... Ne7 {[%clk
0:01:43.1]} 21. Qb1 {[%clk 0:01:41.6]} 21... Nec6 {[%clk 0:01:35.2]} 22. Nxc6
{[%clk 0:01:25.6]} 22... Nxc6 {[%clk 0:01:32.7]} 23. Ra4 {[%clk 0:01:21.2]}
23... Qe7 {[%clk 0:01:30.7]} 24. c4 {[%clk 0:01:14.8]} 24... Qc7 {[%clk
0:01:23.1]} 25. c5 {[%clk 0:01:02.8]} 25... Rhe8 {[%clk 0:01:18.9]} 26. Re2
{[%clk 0:01:00.5]} 26... Bf5 {[%clk 0:01:17]} 27. Rb2 {[%clk 0:00:59.9]} 27...
Re7 {[%clk 0:01:09.9]} 28. Rb6 {[%clk 0:00:58.5]} 28... Rde8 {[%clk 0:01:07.4]}
29. Qb2 {[%clk 0:00:32]} 29... Bxd3 {[%clk 0:01:03.7]} 30. Qf6 {[%clk
0:00:30.8]} 30... Re6 {[%clk 0:00:57.4]} 31. Qc3 {[%clk 0:00:27.8]} 31... Bb5
{[%clk 0:00:55.9]} 32. Ra2 {[%clk 0:00:19.2]} 32... d4 {[%clk 0:00:55.4]} 33.
Qf3 {[%clk 0:00:15.1]} 33... Bc4 {[%clk 0:00:47.9]} 34. Rab2 {[%clk 0:00:13.1]}
34... Bb5 {[%clk 0:00:34.8]} 35. Qf5 {[%clk 0:00:08.8]} 35... d3 {[%clk
0:00:29.7]} 36. Bd5 {[%clk 0:00:09]} 36... Nd4 {[%clk 0:00:21.1]} 37. Qg4 {[%clk
0:00:06.4]} 37... Qxc5 {[%clk 0:00:14.2]} 38. Bxb7+ {[%clk 0:00:05]} 38... Kc7
{[%clk 0:00:12.2]} 39. Rxe6 {[%clk 0:00:05.9]} 39... Rxe6 {[%clk 0:00:10.9]} 40.
Bg2 {[%clk 0:00:01.3]} 40... Qc1+ {[%clk 0:00:10.4]} 41. Kh2 {[%clk 0:00:02]}
41... Qxb2 {[%clk 0:00:10.5]} 42. Qh5 {[%clk 0:00:01.2]} 42... Re7 {[%clk
0:00:07.7]} 43. Qxh6 {[%clk 0:00:01.1]} 43... Qxf2 {[%clk 0:00:03.8]} 44. Qf8
{[%clk 0:00:02]} 44... Nf3+ {[%clk 0:00:03.1]} 0-1

[Event "*** SCC Grand Prix: Titled Tuesday Blitz"]
[Site "Chess.com"]
[Date "2020.09.29"]
[Round "5"]
[White "DrMamaliga"]
[Black "ehrenfeld"]
[Result "0-1"]
[WhiteElo "2293"]
[BlackElo "2529"]
[TimeControl "180+1"]
[EndTime "10:55:47 PDT"]
[Termination "ehrenfeld won by resignation"]

1. c4 {[%clk 0:03:00.9]} 1... e5 {[%clk 0:02:59.1]} 2. Nc3 {[%clk 0:02:58.9]}
2... d6 {[%clk 0:02:59.1]} 3. Nf3 {[%clk 0:02:55.6]} 3... f5 {[%clk 0:02:59]} 4.
d4 {[%clk 0:02:55]} 4... e4 {[%clk 0:02:59.1]} 5. Ng5 {[%clk 0:02:54.8]} 5...
Be7 {[%clk 0:02:59.2]} 6. Nh3 {[%clk 0:02:52.1]} 6... c6 {[%clk 0:02:58.5]} 7.
e3 {[%clk 0:02:40.6]} 7... Nf6 {[%clk 0:02:57.7]} 8. Nf4 {[%clk 0:02:40.3]} 8...
O-O {[%clk 0:02:57.3]} 9. d5 {[%clk 0:02:29.9]} 9... Na6 {[%clk 0:02:55.6]} 10.
h4 {[%clk 0:02:27.5]} 10... Nc7 {[%clk 0:02:54.7]} 11. Be2 {[%clk 0:02:26.5]}
11... Nd7 {[%clk 0:02:52.9]} 12. O-O {[%clk 0:02:22.3]} 12... Ne5 {[%clk
0:02:50.8]} 13. g3 {[%clk 0:02:19.6]} 13... Bd7 {[%clk 0:02:11]} 14. b3 {[%clk
0:02:15.5]} 14... c5 {[%clk 0:02:03]} 15. Bb2 {[%clk 0:02:14.2]} 15... a6 {[%clk
0:02:02.6]} 16. Qd2 {[%clk 0:02:04.9]} 16... Rb8 {[%clk 0:02:00.2]} 17. Rfd1
{[%clk 0:01:58.6]} 17... Rf6 {[%clk 0:01:39.2]} 18. Kg2 {[%clk 0:01:54.1]} 18...
Rh6 {[%clk 0:01:37]} 19. h5 {[%clk 0:01:49.5]} 19... g5 {[%clk 0:01:30.4]} 20.
hxg6 {[%clk 0:01:48.3]} 20... hxg6 {[%clk 0:01:30.1]} 21. Rh1 {[%clk 0:01:48.8]}
21... Rxh1 {[%clk 0:01:28.6]} 22. Rxh1 {[%clk 0:01:49.7]} 22... Bf6 {[%clk
0:01:28.2]} 23. Ne6 {[%clk 0:01:34.6]} 23... Nxe6 {[%clk 0:01:26.7]} 24. dxe6
{[%clk 0:01:35.5]} 24... Bxe6 {[%clk 0:01:26.9]} 25. Nd5 {[%clk 0:01:36.2]}
25... Bxd5 {[%clk 0:01:25.2]} 26. Qxd5+ {[%clk 0:01:37.1]} 26... Kg7 {[%clk
0:01:25.4]} 27. Rd1 {[%clk 0:01:31.3]} 27... Nf7 {[%clk 0:01:24.9]} 28. Bxf6+
{[%clk 0:01:20.2]} 28... Qxf6 {[%clk 0:01:24.3]} 29. Rd2 {[%clk 0:01:19]} 29...
Qe7 {[%clk 0:01:17.4]} 30. a3 {[%clk 0:01:10.2]} 30... Rd8 {[%clk 0:01:12.1]}
31. b4 {[%clk 0:01:08.2]} 31... Rc8 {[%clk 0:00:43.1]} 32. Rd1 {[%clk
0:01:00.7]} 32... Rc7 {[%clk 0:00:42.9]} 33. Rb1 {[%clk 0:00:54.2]} 33... Qe5
{[%clk 0:00:38.1]} 34. Qxe5+ {[%clk 0:00:38]} 34... Nxe5 {[%clk 0:00:36.5]} 35.
bxc5 {[%clk 0:00:36.1]} 35... dxc5 {[%clk 0:00:34.8]} 36. Rb6 {[%clk 0:00:34.3]}
36... Kf7 {[%clk 0:00:31.3]} 37. g4 {[%clk 0:00:32.2]} 37... Nd7 {[%clk
0:00:24.5]} 38. Rd6 {[%clk 0:00:29.3]} 38... Ne5 {[%clk 0:00:19.1]} 39. Kg3
{[%clk 0:00:27.6]} 39... Rc6 {[%clk 0:00:18.2]} 40. Rd5 {[%clk 0:00:24.6]} 40...
Kf6 {[%clk 0:00:17.4]} 41. Kf4 {[%clk 0:00:20.5]} 41... g5+ {[%clk 0:00:17.5]}
42. Kg3 {[%clk 0:00:20.3]} 42... fxg4 {[%clk 0:00:16.5]} 43. Bxg4 {[%clk
0:00:19.7]} 43... Nxc4 {[%clk 0:00:16.4]} 44. Rf5+ {[%clk 0:00:13]} 44... Kg6
{[%clk 0:00:15.9]} 45. Rf8 {[%clk 0:00:13.4]} 45... Nd6 {[%clk 0:00:14.9]} 46.
Be6 {[%clk 0:00:09.7]} 46... c4 {[%clk 0:00:13.4]} 47. Kg4 {[%clk 0:00:08.9]}
47... c3 {[%clk 0:00:13]} 48. Bb3 {[%clk 0:00:08.6]} 48... c2 {[%clk 0:00:10.5]}
49. Rg8+ {[%clk 0:00:09.1]} 49... Kf6 {[%clk 0:00:10.2]} 50. Rf8+ {[%clk
0:00:07]} 50... Ke7 {[%clk 0:00:09.5]} 0-1

[Event "*** SCC Grand Prix: Titled Tuesday Blitz"]
[Site "Chess.com"]
[Date "2020.09.29"]
[Round "5"]
[White "manuellarrea"]
[Black "SHIVACalypso"]
[Result "0-1"]
[WhiteElo "2109"]
[BlackElo "2345"]
[TimeControl "180+1"]
[EndTime "10:55:50 PDT"]
[Termination "SHIVACalypso won on time"]

1. e4 {[%clk 0:03:00.9]} 1... e6 {[%clk 0:03:00.2]} 2. d4 {[%clk 0:02:59.2]}
2... d5 {[%clk 0:03:00.3]} 3. Nc3 {[%clk 0:02:57.7]} 3... Nf6 {[%clk 0:02:58.3]}
4. e5 {[%clk 0:02:56.2]} 4... Nfd7 {[%clk 0:02:58.4]} 5. f4 {[%clk 0:02:53.8]}
5... c5 {[%clk 0:02:58.8]} 6. Nf3 {[%clk 0:02:53.3]} 6... Nc6 {[%clk 0:02:59.3]}
7. Be3 {[%clk 0:02:52.9]} 7... Be7 {[%clk 0:02:59.6]} 8. Qd2 {[%clk 0:02:52]}
8... O-O {[%clk 0:02:59.8]} 9. Be2 {[%clk 0:02:49]} 9... b6 {[%clk 0:02:57.8]}
10. O-O {[%clk 0:02:43.3]} 10... f5 {[%clk 0:02:58.2]} 11. exf6 {[%clk
0:02:29.7]} 11... Nxf6 {[%clk 0:02:56.7]} 12. Kh1 {[%clk 0:02:20.3]} 12... Bb7
{[%clk 0:02:49.3]} 13. Rad1 {[%clk 0:02:09.3]} 13... a6 {[%clk 0:02:40.7]} 14.
Nb1 {[%clk 0:01:54.1]} 14... Qc7 {[%clk 0:02:40.1]} 15. c3 {[%clk 0:01:51.4]}
15... Ng4 {[%clk 0:02:37.6]} 16. Ne5 {[%clk 0:01:41.6]} 16... Ngxe5 {[%clk
0:01:42.4]} 17. fxe5 {[%clk 0:01:38.4]} 17... Rxf1+ {[%clk 0:01:41.6]} 18. Rxf1
{[%clk 0:01:35.9]} 18... Rf8 {[%clk 0:01:40.7]} 19. Qe1 {[%clk 0:01:26.9]} 19...
cxd4 {[%clk 0:01:28.2]} 20. cxd4 {[%clk 0:01:20.5]} 20... Nb4 {[%clk 0:01:28.5]}
21. Rxf8+ {[%clk 0:01:15.4]} 21... Bxf8 {[%clk 0:01:28]} 22. Nc3 {[%clk
0:01:13.4]} 22... Nc2 {[%clk 0:01:25.6]} 23. Qf2 {[%clk 0:01:03.3]} 23... Nxe3
{[%clk 0:01:25.4]} 24. Qxe3 {[%clk 0:01:02.3]} 24... Bb4 {[%clk 0:01:19.3]} 25.
h3 {[%clk 0:00:56.6]} 25... Bxc3 {[%clk 0:01:08.8]} 26. Qxc3 {[%clk 0:00:50.4]}
26... Qxc3 {[%clk 0:01:08.2]} 27. bxc3 {[%clk 0:00:48.7]} 27... Kf7 {[%clk
0:01:06.8]} 28. Kg1 {[%clk 0:00:47.2]} 28... b5 {[%clk 0:00:58.4]} 29. Kf2
{[%clk 0:00:46.4]} 29... Ke7 {[%clk 0:00:58.5]} 30. Ke3 {[%clk 0:00:44.5]} 30...
Kd7 {[%clk 0:00:58.4]} 31. h4 {[%clk 0:00:43]} 31... Kc7 {[%clk 0:00:58.5]} 32.
Bg4 {[%clk 0:00:41]} 32... Bc8 {[%clk 0:00:58.3]} 33. h5 {[%clk 0:00:39.8]}
33... Kb6 {[%clk 0:00:57.8]} 34. Kf4 {[%clk 0:00:32.2]} 34... h6 {[%clk
0:00:56]} 35. Bd1 {[%clk 0:00:28]} 35... b4 {[%clk 0:00:39.8]} 36. cxb4 {[%clk
0:00:26.4]} 36... Kb5 {[%clk 0:00:40.2]} 37. a3 {[%clk 0:00:24.3]} 37... Kc4
{[%clk 0:00:40.6]} 38. Ke3 {[%clk 0:00:23.4]} 38... Kc3 {[%clk 0:00:41]} 39. g4
{[%clk 0:00:18.8]} 39... Bd7 {[%clk 0:00:39.5]} 40. Be2 {[%clk 0:00:17.2]} 40...
Bb5 {[%clk 0:00:36.2]} 41. Bd1 {[%clk 0:00:13.3]} 41... Bc4 {[%clk 0:00:32.3]}
42. Ba4 {[%clk 0:00:11.7]} 42... Bb5 {[%clk 0:00:30.7]} 43. Bd1 {[%clk
0:00:09.9]} 43... Kb2 {[%clk 0:00:30.6]} 44. a4 {[%clk 0:00:07.5]} 44... Bc4
{[%clk 0:00:30.6]} 45. Be2 {[%clk 0:00:05.3]} 45... Kc3 {[%clk 0:00:24.6]} 46.
b5 {[%clk 0:00:03.5]} 46... axb5 {[%clk 0:00:21.1]} 47. axb5 {[%clk 0:00:02.8]}
47... Kb4 {[%clk 0:00:10.8]} 48. b6 {[%clk 0:00:02.3]} 48... Ba6 {[%clk
0:00:09.8]} 0-1

[Event "*** SCC Grand Prix: Titled Tuesday Blitz"]
[Site "Chess.com"]
[Date "2020.09.29"]
[Round "5"]
[White "Barys1974"]
[Black "Shuvalov"]
[Result "1-0"]
[WhiteElo "2616"]
[BlackElo "2433"]
[TimeControl "180+1"]
[EndTime "10:55:52 PDT"]
[Termination "Barys1974 won by resignation"]

1. Nf3 {[%clk 0:03:00.9]} 1... d5 {[%clk 0:02:56.4]} 2. d4 {[%clk 0:02:54.2]}
2... c5 {[%clk 0:02:53.8]} 3. e3 {[%clk 0:02:50.1]} 3... Nf6 {[%clk 0:02:52.4]}
4. dxc5 {[%clk 0:02:44.5]} 4... e6 {[%clk 0:02:47.5]} 5. c4 {[%clk 0:02:43.9]}
5... Bxc5 {[%clk 0:02:45.4]} 6. Nc3 {[%clk 0:02:43.3]} 6... Nc6 {[%clk 0:02:43]}
7. a3 {[%clk 0:02:39.6]} 7... O-O {[%clk 0:02:38]} 8. b4 {[%clk 0:02:37.7]} 8...
Be7 {[%clk 0:02:34.3]} 9. Bb2 {[%clk 0:02:37.7]} 9... dxc4 {[%clk 0:02:24.6]}
10. Bxc4 {[%clk 0:02:33.5]} 10... a6 {[%clk 0:02:19.1]} 11. Qe2 {[%clk
0:02:26.7]} 11... b5 {[%clk 0:02:17.5]} 12. Bb3 {[%clk 0:02:25.8]} 12... Bb7
{[%clk 0:02:16.7]} 13. O-O {[%clk 0:02:25.1]} 13... Qb6 {[%clk 0:02:07.1]} 14.
Rac1 {[%clk 0:02:23]} 14... Rfd8 {[%clk 0:02:01.3]} 15. e4 {[%clk 0:02:15]}
15... Ng4 {[%clk 0:00:51.1]} 16. Nd5 {[%clk 0:01:48.2]} 16... exd5 {[%clk
0:00:38.4]} 17. exd5 {[%clk 0:01:47.4]} 17... Bf6 {[%clk 0:00:34.4]} 18. Bxf6
{[%clk 0:01:31.9]} 18... Nxf6 {[%clk 0:00:31.6]} 19. dxc6 {[%clk 0:01:31.5]}
19... Bxc6 {[%clk 0:00:32.5]} 20. Bxf7+ {[%clk 0:01:25.9]} 20... Kh8 {[%clk
0:00:29.8]} 21. Ne5 {[%clk 0:01:21.7]} 21... Bd5 {[%clk 0:00:25.4]} 22. Rfd1
{[%clk 0:01:12.2]} 22... Qb7 {[%clk 0:00:16.7]} 23. Bxd5 {[%clk 0:01:06.9]}
23... Rxd5 {[%clk 0:00:17.6]} 24. Rxd5 {[%clk 0:01:03.9]} 24... Qxd5 {[%clk
0:00:17.8]} 25. Rd1 {[%clk 0:00:58.5]} 25... Qb3 {[%clk 0:00:15.4]} 26. Qd3
{[%clk 0:00:42.9]} 26... Qxd3 {[%clk 0:00:14.7]} 27. Rxd3 {[%clk 0:00:39.9]}
27... Re8 {[%clk 0:00:15]} 28. f4 {[%clk 0:00:39.7]} 28... g5 {[%clk 0:00:13.2]}
29. Nf7+ {[%clk 0:00:38]} 29... Kg7 {[%clk 0:00:12.7]} 30. Nxg5 {[%clk
0:00:38.5]} 30... Re1+ {[%clk 0:00:12.4]} 31. Kf2 {[%clk 0:00:37]} 31... Ra1
{[%clk 0:00:13.3]} 32. Ne6+ {[%clk 0:00:30.7]} 32... Kg6 {[%clk 0:00:12.4]} 33.
Nc5 {[%clk 0:00:31.2]} 33... Kf5 {[%clk 0:00:11]} 34. g3 {[%clk 0:00:20.4]}
34... Ne4+ {[%clk 0:00:10.9]} 35. Nxe4 {[%clk 0:00:19.8]} 35... Kxe4 {[%clk
0:00:11.8]} 36. Re3+ {[%clk 0:00:19.9]} 36... Kd4 {[%clk 0:00:12.1]} 37. Rb3
{[%clk 0:00:18.6]} 37... Kc4 {[%clk 0:00:11.9]} 38. Rf3 {[%clk 0:00:18.8]} 38...
Kd5 {[%clk 0:00:10.9]} 39. f5 {[%clk 0:00:19]} 39... Rc1 {[%clk 0:00:09.1]} 40.
f6 {[%clk 0:00:19.2]} 40... Rc8 {[%clk 0:00:09.4]} 41. g4 {[%clk 0:00:19.4]}
41... Rf8 {[%clk 0:00:08.9]} 42. f7 {[%clk 0:00:19.5]} 42... Ke6 {[%clk
0:00:08.8]} 43. Ke3 {[%clk 0:00:19.9]} 43... Rxf7 {[%clk 0:00:09]} 44. Rxf7
{[%clk 0:00:19.9]} 44... Kxf7 {[%clk 0:00:09.9]} 45. Kd4 {[%clk 0:00:20.1]}
45... Kf6 {[%clk 0:00:10.5]} 46. Kc5 {[%clk 0:00:20.5]} 46... Kg5 {[%clk
0:00:11]} 47. Kb6 {[%clk 0:00:21.1]} 47... Kxg4 {[%clk 0:00:11.5]} 48. Kxa6
{[%clk 0:00:21.4]} 48... Kh3 {[%clk 0:00:12.4]} 49. Kxb5 {[%clk 0:00:21.9]}
49... Kxh2 {[%clk 0:00:13.3]} 50. a4 {[%clk 0:00:22.4]} 50... h5 {[%clk
0:00:14.2]} 51. a5 {[%clk 0:00:22.9]} 51... h4 {[%clk 0:00:15.1]} 52. a6 {[%clk
0:00:23.2]} 52... h3 {[%clk 0:00:16]} 53. a7 {[%clk 0:00:23.5]} 53... Kg1 {[%clk
0:00:16.8]} 54. a8=Q {[%clk 0:00:23.7]} 54... h2 {[%clk 0:00:17.7]} 55. Qf3
{[%clk 0:00:20.2]} 55... h1=Q {[%clk 0:00:18.6]} 56. Qxh1+ {[%clk 0:00:20.2]}
56... Kxh1 {[%clk 0:00:19.5]} 57. Kc5 {[%clk 0:00:20.6]} 57... Kg2 {[%clk
0:00:20.4]} 58. b5 {[%clk 0:00:20.7]} 58... Kf3 {[%clk 0:00:21.3]} 59. b6 {[%clk
0:00:21.2]} 59... Ke4 {[%clk 0:00:22.2]} 60. b7 {[%clk 0:00:21.8]} 60... Ke5
{[%clk 0:00:23.1]} 61. b8=Q+ {[%clk 0:00:22.1]} 61... Ke6 {[%clk 0:00:24]} 62.
Qe8+ {[%clk 0:00:21.8]} 1-0